bitfinex/quotes_SOLUSD_20260211
["timestamp","ask_amount","ask_price","bid_price","bid_amount"]
[1770775244661,0.73326304,83.859,83.821,0.10128491]
[1770775245577,0.73326304,83.857,83.824,0.10264409]
[1770775247286,0.73326304,83.857,83.823,11.9298999]
[1770775248576,0.73326304,83.857,83.824,0.10460126]
[1770775249180,11.92445855,83.862,83.824,0.10460126]
[1770775249571,0.73326304,83.864,83.831,0.10524106]
[1770775252876,0.1,83.87,83.841,0.10834198]
[1770775253086,0.1,83.87,83.843,0.10834198]
[1770775253585,0.76219243,83.869,83.843,0.10834198]
[1770775256191,0.76219243,83.869,83.843,12.03539611]
[1770775256886,0.76219243,83.869,83.844,0.11068269]
[1770775257183,0.1,83.87,83.844,0.11068269]
[1770775259785,0.1,83.88,83.846,5.13032502]
[1770775259982,0.1,83.88,83.85,3.50013591]
[1770775260494,0.1,83.88,83.851,41.74070672]
[1770775261664,0.86219243,83.9,83.87,3.50013591]
[1770775261883,0.86219243,83.9,83.88,3.50013591]
[1770775261884,0.1,83.9,83.88,3.50013591]
[1770775262092,12.6770252,83.929,83.89,3.50013591]
[1770775262284,0.76219243,83.928,83.891,52.82]
[1770775262683,0.76219243,83.928,83.892,41.72030705]
[1770775264000,0.76219243,83.926,83.893,52.8]
[1770775264786,0.76219243,83.926,83.895,11.91966148]
[1770775265294,0.76219243,83.926,83.9,3.50013591]
[1770775265995,0.76219243,83.926,83.901,52.82]
[1770775267802,1e-08,83.937,83.92,3.50013591]
[1770775267986,0.76219243,83.955,83.93,3.50013591]
[1770775268184,0.76219243,83.955,83.94,3.50013591]
[1770775268497,0.76219243,83.955,83.94,56.34013591]
[1770775268800,0.86219243,83.96,83.94,56.34013591]
[1770775269181,0.86219243,83.96,83.94,3.50013591]
[1770775269377,0.1,83.96,83.941,52.86]
[1770775269781,0.1,83.96,83.942,41.69545637]
[1770775270412,11.90518709,83.997,83.945,0.70730847]
[1770775270581,3.50013591,83.99,83.951,0.70730847]
[1770775270789,3.50013591,83.98,83.951,0.70730847]
[1770775271309,3.50013591,83.96,83.952,52.88]
[1770775271603,3.50013591,83.97,83.952,52.88]
[1770775272384,0.76219243,83.969,83.952,52.88]
[1770775273211,3.50013591,83.96,83.952,52.88]
[1770775273513,0.76219243,83.959,83.941,52.88]
[1770775274181,0.76219243,83.949,83.922,0.70730847]
[1770775274510,59.53609836,83.983,83.86,47.69838882]
[1770775274511,3.50013591,83.93,83.919,52.9]
[1770775274800,0.76219243,83.929,83.919,52.12909815]
[1770775274984,0.76219243,83.929,83.919,50.60020158]
[1770775275186,3.50013591,83.93,83.919,50.60020158]
[1770775279740,3.50013591,83.94,83.919,50.60020158]
[1770775280200,3.50013591,83.94,83.914,0.77144296]
[1770775280506,3.50013591,83.94,83.916,52.94]
[1770775280708,3.50013591,83.94,83.913,11.91702035]
[1770775280709,3.50013591,83.97,83.931,0.77144296]
[1770775280905,3.50013591,83.97,83.933,0.77144296]
[1770775281522,3.50013591,83.97,83.935,0.77144296]
[1770775281907,3.50013591,83.97,83.941,0.77144296]
[1770775282227,0.02177104,83.969,83.936,65.62528207]
[1770775282406,0.02177104,83.969,83.937,0.77144296]
[1770775282601,3.50013591,83.97,83.937,0.77144296]
[1770775283238,3.52223056,83.97,83.937,0.77144296]
[1770775283720,11.93156139,83.969,83.939,0.77144296]
[1770775283934,0.02271094,83.968,83.939,0.77144296]
[1770775284239,3.50013591,83.96,83.938,11.91355524]
[1770775286321,11.90991149,83.964,83.938,11.91355524]
[1770775286524,0.02331553,83.964,83.938,12.6849982]
[1770775287029,0.02331553,83.964,83.939,0.77144296]
[1770775287329,0.0236108,83.959,83.936,52.94]
[1770775289126,0.0236108,83.959,83.936,53.71144296]
[1770775289325,3.50013591,83.96,83.937,0.77144296]
[1770775289908,11.91057539,83.959,83.937,0.77144296]
[1770775290208,3.50013591,83.96,83.937,0.77144296]
[1770775291330,15.43539012,83.96,83.937,0.77144296]
[1770775291724,3.52489057,83.96,83.937,0.77144296]
[1770775292233,11.91057539,83.959,83.937,0.77144296]
[1770775292525,0.02503232,83.958,83.936,52.94]
[1770775293430,100.24054209,83.988,83.937,0.77144296]
[1770775293431,0.02531064,83.987,83.937,0.77144296]
[1770775293728,3.50013591,83.97,83.941,0.77144296]
[1770775295032,3.52600044,83.97,83.941,0.77144296]
[1770775296537,3.50013591,83.97,83.943,0.77144296]
[1770775296916,15.40918886,83.97,83.943,0.77144296]
[1770775298326,15.40918886,83.97,83.944,53.02]
[1770775298634,15.40918886,83.97,83.945,0.77144296]
[1770775298931,15.43609756,83.97,83.945,0.77144296]
[1770775300012,3.50013591,83.95,83.928,53.04]
[1770775300216,3.50013591,83.95,83.928,0.77144296]
[1770775300450,0.02716739,83.956,83.931,0.77144296]
[1770775301314,0.02741938,83.939,83.918,11.91631642]
[1770775301917,3.50013591,83.93,83.912,53.04]
[1770775303933,3.50013591,83.93,83.912,65.72856045]
[1770775304233,3.50013591,83.95,83.913,0.77144296]
[1770775304538,3.50013591,83.94,83.913,0.77144296]
[1770775305838,3.50013591,83.95,83.915,0.77144296]
[1770775307036,15.41061697,83.96,83.92,3.50013591]
[1770775307240,15.41061697,83.96,83.916,41.70837503]
[1770775307241,3.50013591,83.97,83.931,0.77144296]
[1770775307823,3.50013591,83.97,83.933,0.77144296]
[1770775310341,3.50013591,83.96,83.935,0.77144296]
[1770775310522,3.52988488,83.96,83.935,0.77144296]
[1770775311044,3.50013591,83.96,83.935,0.77144296]
[1770775312343,11.90915695,83.969,83.937,0.77144296]
[1770775313047,3.49274318,83.95,83.93,11.91460253]
[1770775313246,0.0303864,83.949,83.93,11.91460253]
[1770775314348,0.0303864,83.949,83.926,11.91525868]
[1770775315044,0.0303864,83.949,83.926,12.68670164]
[1770775315346,0.0303864,83.949,83.927,0.77144296]
[1770775315952,11.94238058,83.949,83.927,0.77144296]
[1770775316248,3.49274318,83.95,83.927,0.77144296]
[1770775316934,3.49425356,83.95,83.928,11.91497474]
[1770775317134,3.49425356,83.95,83.929,0.77144296]
[1770775318643,0.03143004,83.949,83.923,12.68704081]
[1770775318944,11.91341331,83.939,83.922,53.12]
[1770775319148,11.94504473,83.939,83.916,0.77144296]
[1770775319533,11.94504473,83.939,83.917,0.77144296]
[1770775320835,0.03202713,83.929,83.909,53.18]
[1770775321246,11.91483277,83.929,83.905,0.77144296]
[1770775321444,11.91320481,83.941,83.905,0.77144296]
[1770775321638,11.91320481,83.941,83.907,0.77144296]
[1770775322533,11.91320481,83.941,83.911,0.77144296]
[1770775325753,29.78052911,83.948,83.913,0.77144296]
[1770775325960,3.49425356,83.97,83.931,0.77144296]
[1770775326138,0.03299475,83.967,83.931,0.77144296]
[1770775326670,3.49425356,83.96,83.931,0.77144296]
[1770775327338,0.03317892,83.959,83.931,0.77144296]
[1770775328045,0.03337203,83.949,83.926,53.2]
[1770775328357,3.49425356,83.95,83.927,0.77144296]
[1770775328547,0.03337203,83.955,83.931,11.91441917]
[1770775328746,0.03337203,83.955,83.928,0.77144296]
[1770775329249,0.03355254,83.949,83.928,0.77144296]
[1770775329456,0.03355254,83.949,83.926,53.2]
[1770775329965,0.03355254,83.949,83.928,11.91495608]
[1770775330173,3.49425356,83.95,83.929,0.77144296]
[1770775330942,11.91199418,83.949,83.929,0.77144296]
[1770775331155,0.03391904,83.948,83.926,53.2]
[1770775332341,0.03391904,83.948,83.926,53.97144296]
[1770775334250,0.03443699,83.939,83.913,0.77144296]
[1770775335849,0.03443699,83.939,83.916,0.77144296]
[1770775336667,0.03443699,83.939,83.908,53.26]
[1770775336668,3.49425356,83.95,83.918,0.77144296]
[1770775338258,3.49425356,83.95,83.92,0.77144296]
[1770775338564,11.9117882,83.951,83.92,0.77144296]
[1770775338752,3.49425356,83.95,83.92,0.77144296]
[1770775340176,0.0355797,83.949,83.92,0.77144296]
[1770775341973,0.0355797,83.949,83.921,11.91596858]
[1770775341974,0.03588566,83.948,83.921,11.91596858]
[1770775342666,0.03588566,83.948,83.921,12.68741154]
[1770775343054,0.03588566,83.948,83.922,0.77144296]
[1770775343258,3.49425356,83.95,83.922,0.77144296]
[1770775344275,3.49425356,83.95,83.924,0.77144296]
[1770775344449,11.91199418,83.949,83.924,0.77144296]
[1770775346257,3.49425356,83.95,83.925,11.91540065]
[1770775346458,3.49425356,83.95,83.926,0.77144296]
[1770775346876,72.18,83.96,83.914,11.91689945]
[1770775346877,0.03140743,83.939,83.914,11.91689945]
[1770775347656,0.03140743,83.939,83.918,11.91638554]
[1770775347978,0.03140743,83.939,83.918,12.6878285]
[1770775348193,0.03140743,83.939,83.918,0.77144296]
[1770775348478,0.03068624,83.938,83.91,0.77144296]
[1770775349857,3.49425356,83.93,83.91,0.77144296]
[1770775350059,0.02928584,83.929,83.896,0.77144296]
[1770775350469,0.02928584,83.919,83.896,0.77144296]
[1770775350757,3.49425356,83.93,83.9,0.77144296]
[1770775351457,3.49425356,83.93,83.909,11.9176324]
[1770775351662,72.34,83.941,83.912,0.77144296]
[1770775351870,72.34,83.941,83.913,11.91710462]
[1770775352080,100.24054209,83.945,83.914,0.77144296]
[1770775352384,11.9127037,83.944,83.914,0.77144296]
[1770775353783,3.49425356,83.94,83.914,0.77144296]
[1770775355980,15.40764616,83.94,83.914,0.77144296]
[1770775356287,3.49425356,83.93,83.914,0.77144296]
[1770775356484,0.02526078,83.939,83.914,0.77144296]
[1770775358388,0.02526078,83.939,83.915,0.77144296]
[1770775358776,100.26390115,83.945,83.915,0.77144296]
[1770775358988,100.24054209,83.945,83.915,0.77144296]
[1770775360383,0.02273005,83.966,83.93,3.49425356]
[1770775360582,11.91027639,83.962,83.931,0.77144296]
[1770775361285,3.49425356,83.96,83.931,0.77144296]
[1770775362080,11.91027639,83.962,83.931,0.77144296]
[1770775362984,0.02092519,83.969,83.933,0.77144296]
[1770775363387,11.93008214,83.969,83.933,0.77144296]
[1770775363893,76.17425356,83.97,83.933,0.77144296]
[1770775365193,76.17425356,83.97,83.935,0.77144296]
[1770775365587,11.90915695,83.969,83.935,0.77144296]
[1770775366802,5.13032502,83.994,83.96,6.98850712]
[1770775367093,0.1,84.04,83.97,6.21674438]
[1770775367094,3.10939681,83.999,83.97,6.21674438]
[1770775367295,16.66,83.998,83.97,5.43335079]
[1770775367497,16.66,83.998,83.911,0.78046116]
[1770775367498,3.49425356,83.98,83.911,0.78046116]
[1770775367795,3.49425356,83.95,83.918,0.78046116]
[1770775367996,3.10939681,83.999,83.891,0.78046116]
[1770775367997,39.62,83.949,83.891,0.78046116]
[1770775368293,16.80688389,83.96,83.921,0.78046116]
[1770775368801,3.49425356,83.96,83.921,0.78046116]
[1770775369094,3.49425356,83.96,83.901,47.67493895]
[1770775369095,3.49425356,83.96,83.922,11.9158266]
[1770775369283,3.49425356,83.96,83.923,0.78046116]
[1770775369674,30.78939467,83.982,83.922,11.9158266]
[1770775369675,3.49425356,83.98,83.941,0.78046116]
[1770775369886,74.2,83.979,83.941,0.78046116]
[1770775370894,28.97433687,84.003,83.94,3.49425356]
[1770775371102,18.64223669,84.1,83.922,160.8636591]
[1770775371103,0.79076951,84.049,84.0,63.72984521]
[1770775371273,0.79076951,84.049,84.001,11.90462018]
[1770775371479,0.79076951,84.062,84.03,3.49425356]
[1770775371999,0.79076951,84.062,84.04,3.49425356]
[1770775372181,0.79076951,84.086,84.04,3.49425356]
[1770775372387,0.79076951,84.079,84.03,3.49425356]
[1770775372898,0.79076951,84.079,84.03,9.33253705]
[1770775373398,75.4,84.137,84.071,0.75463607]
[1770775373592,75.4,84.137,84.06,9.33253705]
[1770775373593,75.4,84.137,84.09,10.08717312]
[1770775373800,87.28538764,84.137,84.09,10.08717312]
[1770775373996,5.13032502,84.127,84.09,9.33253705]
[1770775374402,35.72917286,84.279,84.06,9.33253705]
[1770775374403,11.59739938,84.23,84.124,0.75463607]
[1770775374605,1e-08,84.213,84.181,0.75463607]
[1770775374777,6.21196145,84.224,84.201,0.75463607]
[1770775374778,1e-08,84.224,84.201,0.75463607]
[1770775374982,6.53478319,84.26,84.211,0.75463607]
[1770775375288,1e-08,84.272,84.251,0.75463607]
[1770775375592,47.42360035,84.347,84.241,11.87070428]
[1770775375593,0.76077982,84.331,84.261,0.75463607]
[1770775375903,0.76077982,84.331,84.241,183.99591645]
[1770775375904,0.76077982,84.329,84.28,9.29105519]
[1770775376286,0.76077982,84.289,84.193,0.75463607]
[1770775376596,0.76077982,84.259,84.229,11.87239292]
[1770775376797,0.76077982,84.259,84.22,9.29105519]
[1770775376998,0.76077982,84.249,84.215,0.75463607]
[1770775377803,12.63037113,84.249,84.215,0.75463607]
[1770775378099,12.63037113,84.249,84.179,47.51761326]
[1770775378100,9.29105519,84.23,84.198,0.75463607]
[1770775378296,75.56,84.235,84.205,11.87576893]
[1770775378495,0.76077982,84.219,84.17,9.29105519]
[1770775378801,9.29105519,84.22,84.192,4.65552969]
[1770775378802,10.05183501,84.22,84.192,4.65552969]
[1770775379001,9.29105519,84.23,84.192,4.65552969]
[1770775379182,11.87239549,84.229,84.192,4.65552969]
[1770775379377,9.29105519,84.22,84.192,5.41016576]
[1770775379682,9.29105519,84.21,84.192,5.41016576]
[1770775379881,9.29105519,84.21,84.192,4.65552969]
[1770775380184,75.52,84.209,84.192,4.65552969]
[1770775380383,9.29105519,84.2,84.18,0.75463607]
[1770775380604,75.52,84.209,84.18,0.75463607]
[1770775380899,9.29105519,84.2,84.18,0.75463607]
[1770775381096,75.52,84.209,84.18,0.75463607]
[1770775381296,9.29105519,84.2,84.18,0.75463607]
[1770775381683,9.29105519,84.2,84.169,0.75463607]
[1770775381884,75.44,84.201,84.182,0.75463607]
[1770775382089,9.29105519,84.21,84.182,0.75463607]
[1770775383788,75.4,84.209,84.182,0.75463607]
[1770775384493,9.29105519,84.21,84.182,0.75463607]
[1770775384693,75.36,84.248,84.2,9.29105519]
[1770775385000,75.36,84.248,84.186,5.13032502]
[1770775385001,75.36,84.248,84.21,9.29105519]
[1770775385400,9.29105519,84.23,84.183,11.8788829]
[1770775385716,75.32,84.231,84.2,9.29105519]
[1770775385903,75.32,84.233,84.2,9.29105519]
[1770775386604,0.83445525,84.276,84.21,9.29105519]
[1770775386899,0.83445525,84.276,84.181,29.69756446]
[1770775386900,9.29105519,84.25,84.207,0.0230447]
[1770775387105,0.83445525,84.239,84.195,0.0230447]
[1770775387505,9.29105519,84.23,84.195,0.0230447]
[1770775388198,9.29105519,84.23,84.181,29.69756446]
[1770775388199,0.83445525,84.219,84.185,11.87856959]
[1770775388405,75.24,84.218,84.185,11.87856959]
[1770775388711,66.98828893,84.218,84.185,11.87856959]
[1770775388911,66.98828893,84.218,84.19,11.87784243]
[1770775389116,66.98828893,84.218,84.19,21.16889762]
[1770775389609,66.98828893,84.218,84.181,0.03798316]
[1770775390827,66.98828893,84.218,84.154,41.59041755]
[1770775390828,0.83445525,84.217,84.171,0.04532218]
[1770775391119,0.83445525,84.217,84.154,148.53720557]
[1770775391120,0.83445525,84.229,84.18,9.29105519]
[1770775391418,75.14,84.232,84.191,0.05257939]
[1770775391716,75.14,84.232,84.139,5.36086188]
[1770775391717,0.83445525,84.209,84.181,11.87916513]
[1770775391891,0.83445525,84.207,84.176,11.8798461]
[1770775392087,0.83445525,84.207,84.18,11.87916533]
[1770775392307,75.12,84.208,84.18,21.22997544]
[1770775392791,75.12,84.208,84.18,21.17022052]
[1770775393296,75.12,84.208,84.18,50.86848614]
[1770775393514,75.12,84.208,84.18,21.17022052]
[1770775393806,75.12,84.208,84.171,0.07387167]
[1770775394007,75.12,84.208,84.18,9.29105519]
[1770775394409,0.83445525,84.239,84.2,9.29105519]
[1770775394709,0.83445525,84.237,84.2,9.29105519]
[1770775395113,9.29105519,84.23,84.191,0.07387167]
[1770775395290,0.83445525,84.237,84.191,0.07387167]
[1770775396292,0.83445525,84.235,84.191,0.07387167]
[1770775396618,0.83445525,84.235,84.2,9.29105519]
[1770775396912,75.06,84.238,84.201,0.08765559]
[1770775397106,75.89445525,84.238,84.201,0.08765559]
[1770775397314,0.83445525,84.237,84.201,0.08765559]
[1770775397994,0.83445525,84.237,84.201,11.9639991]
[1770775398198,9.29105519,84.23,84.201,11.87634351]
[1770775398392,11.87140889,84.236,84.17,9.39219345]
[1770775398393,0.83445525,84.219,84.17,9.39219345]
[1770775398617,0.83445525,84.209,84.183,11.87878568]
[1770775398791,0.83445525,84.209,84.188,11.87812507]
[1770775400997,0.83445525,84.209,84.183,11.87879269]
[1770775402013,0.83445525,84.209,84.181,11.87916513]
[1770775402395,74.82,84.208,84.181,11.87916513]
[1770775402601,0.83445525,84.207,84.181,11.87916513]
[1770775403319,0.83445525,84.207,84.171,11.88057644]
[1770775403497,74.8,84.206,84.18,9.29105519]
[1770775404613,0.87145247,84.205,84.181,11.87916513]
[1770775404824,9.29105519,84.21,84.181,11.87916513]
[1770775404825,0.87145247,84.203,84.181,11.87916513]
[1770775405321,74.76,84.202,84.181,11.87916513]
[1770775405820,75.63145247,84.202,84.181,11.87916513]
[1770775406005,0.87145247,84.201,84.181,11.87916513]
[1770775406496,0.87145247,84.199,84.164,11.88143048]
[1770775406696,0.87145247,84.199,84.15,9.29105519]
[1770775406697,0.87145247,84.188,84.152,0.16993393]
[1770775406905,74.74,84.187,84.16,9.29105519]
[1770775407423,74.72,84.186,84.16,9.29105519]
[1770775409114,0.87145247,84.188,84.161,11.88198809]
[1770775409316,74.72,84.187,84.161,11.88198809]
[1770775409512,75.59145247,84.187,84.161,11.88198809]
[1770775409723,75.57145247,84.186,84.161,11.88198809]
[1770775410216,0.87145247,84.185,84.161,11.88198809]
[1770775410416,75.57145247,84.185,84.161,11.88198809]
[1770775410721,74.68,84.184,84.161,11.88198809]
[1770775411126,74.68,84.184,84.141,29.71174449]
[1770775411127,0.87145247,84.179,84.141,29.71174449]
[1770775411425,0.87145247,84.199,84.161,0.19285621]
[1770775411722,75.53145247,84.198,84.17,9.29105519]
[1770775412224,0.87145247,84.197,84.161,0.19285621]
[1770775412527,75.53145247,84.197,84.161,0.19285621]
[1770775413216,75.53145247,84.197,84.16,9.29105519]
[1770775413217,0.87145247,84.196,84.162,41.58646419]
[1770775413821,0.87145247,84.194,84.162,41.79581681]
[1770775414424,0.87145247,84.192,84.162,41.79581681]
[1770775414730,0.87145247,84.192,84.162,41.58646419]
[1770775414916,0.87145247,84.192,84.162,11.88184691]
[1770775415222,0.87145247,84.187,84.151,11.88340007]
[1770775415802,0.87145247,84.187,84.152,0.22004371]
[1770775416217,74.58,84.186,84.16,9.5110989]
[1770775416407,0.87145247,84.187,84.16,9.5110989]
[1770775416607,0.87145247,84.187,84.16,0.22004371]
[1770775416910,0.87145247,84.187,84.16,9.5110989]
[1770775417220,0.87145247,84.187,84.161,11.88198809]
[1770775417430,75.41145247,84.187,84.161,11.88198809]
[1770775417810,0.87145247,84.186,84.161,11.88198809]
[1770775418124,0.87145247,84.184,84.161,11.88198809]
[1770775418311,0.87145247,84.182,84.161,11.88198809]
[1770775418713,0.87145247,84.18,84.157,11.88253705]
[1770775419034,0.87145247,84.18,84.16,11.88202936]
[1770775419228,0.87145247,84.18,84.152,11.88325886]
[1770775419431,0.87145247,84.178,84.152,11.88325886]
[1770775419610,0.87145247,84.176,84.152,11.88325886]
[1770775419932,59.3745403,84.212,84.152,11.88325886]
[1770775419933,0.87145247,84.174,84.152,11.88325886]
[1770775422022,0.87145247,84.174,84.16,9.29105519]
[1770775422228,74.48,84.193,84.161,0.25066447]
[1770775422428,74.48,84.193,84.17,9.29105519]
[1770775422808,75.35145247,84.193,84.17,9.29105519]
[1770775423008,0.87145247,84.192,84.17,9.29105519]
[1770775423530,0.87145247,84.192,84.171,11.88057644]
[1770775424407,0.87145247,84.189,84.15,9.29105519]
[1770775424928,0.87145247,84.179,84.147,11.8839144]
[1770775425427,74.46,84.178,84.16,9.55625758]
[1770775425630,74.46,84.178,84.16,9.29105519]
[1770775425928,0.87145247,84.177,84.16,9.29105519]
[1770775426224,74.46,84.178,84.16,9.29105519]
[1770775426432,75.33145247,84.178,84.15,21.17451057]
[1770775427012,0.87145247,84.177,84.15,21.17451057]
[1770775428438,74.42,84.176,84.151,0.27922806]
[1770775428617,74.4,84.175,84.151,0.27922806]
[1770775431039,74.4,84.175,84.16,9.29105519]
[1770775431227,0.95701971,84.202,84.161,0.29722333]
[1770775431428,0.95701971,84.201,84.17,9.29105519]
[1770775431638,74.36,84.2,84.17,9.29105519]
[1770775431937,0.95701971,84.199,84.17,9.29105519]
[1770775433338,0.95701971,84.199,84.171,11.88057644]
[1770775433833,0.95701971,84.208,84.18,9.29105519]
[1770775434032,0.95701971,84.22,84.191,0.31014634]
[1770775435339,0.95701971,84.22,84.192,11.87761307]
[1770775435520,0.95701971,84.228,84.2,9.29771409]
[1770775435725,0.95701971,84.228,84.21,9.29771409]
[1770775437045,0.95701971,84.228,84.2,9.29487136]
[1770775438259,0.95701971,84.228,84.21,9.29487136]
[1770775438841,0.95701971,84.226,84.19,11.8777953]
[1770775439038,11.8726774,84.227,84.19,9.29487136]
[1770775439039,74.26,84.225,84.19,9.29487136]
[1770775439241,0.95701971,84.224,84.189,11.87795022]
[1770775439444,0.95701971,84.224,84.184,11.87862594]
[1770775440458,0.95701971,84.219,84.181,11.87916513]
[1770775440667,0.95701971,84.199,84.129,0.33468328]
[1770775440831,0.95701971,84.189,84.159,11.88226488]
[1770775441035,0.95701971,84.187,84.159,11.88226488]
[1770775441336,0.95701971,84.187,84.151,29.70817409]
[1770775441647,41.55634446,84.223,84.18,9.29487136]
[1770775441648,75.21701971,84.203,84.18,9.29487136]
[1770775441946,0.95701971,84.203,84.181,11.87916513]
[1770775443046,74.24,84.21,84.181,11.87916513]
[1770775443232,74.24,84.21,84.19,9.29487136]
[1770775443436,0.95701971,84.209,84.19,9.29487136]
[1770775443635,0.95701971,84.209,84.181,11.87916513]
[1770775444029,0.95701971,84.208,84.181,11.87916513]
[1770775444229,74.24,84.21,84.17,9.29487136]
[1770775444230,0.95701971,84.206,84.17,9.29487136]
[1770775444430,0.95701971,84.204,84.17,9.29487136]
[1770775445151,0.95701971,84.202,84.175,11.8799009]
[1770775447255,0.95701971,84.2,84.171,11.88053089]
[1770775450552,0.95701971,84.2,84.18,9.29487136]
[1770775453661,0.95701971,84.198,84.17,9.29487136]
[1770775453962,0.95701971,84.198,84.176,11.87974547]
[1770775454166,0.95701971,84.198,84.172,11.88041996]
[1770775454544,0.95701971,84.196,84.161,11.88189987]
[1770775454741,0.95701971,84.196,84.15,39.00345255]
[1770775454742,0.95701971,84.196,84.16,9.29487136]
[1770775455257,0.95701971,84.196,84.167,11.88111837]
[1770775455465,0.95701971,84.194,84.162,11.88180447]
[1770775455651,0.95701971,84.194,84.165,11.88138339]
[1770775457167,0.95701971,84.192,84.161,11.88198809]
[1770775457353,0.95701971,84.189,84.15,9.29487136]
[1770775457549,0.95701971,84.187,84.15,9.29487136]
[1770775458249,0.95701971,84.179,84.144,11.88433529]
[1770775458563,0.95701971,84.179,84.16,9.29487136]
[1770775458745,74.12,84.178,84.16,9.29487136]
[1770775459258,0.95701971,84.179,84.16,9.29487136]
[1770775459474,74.12,84.178,84.151,0.40219576]
[1770775460260,0.94814511,84.177,84.152,11.88325886]
[1770775460783,74.12,84.176,84.152,11.88325886]
[1770775461258,0.94814511,84.177,84.152,11.88325886]
[1770775461465,74.12,84.175,84.152,11.88325886]
[1770775462466,0.94814511,84.174,84.152,11.88325886]
[1770775462870,0.94814511,84.174,84.145,11.88410807]
[1770775463073,74.12,84.175,84.134,0.41760675]
[1770775463074,0.94814511,84.169,84.134,0.41760675]
[1770775463373,0.94814511,84.167,84.135,11.88565995]
[1770775463569,0.99687467,84.159,84.123,0.42059331]
[1770775463777,0.99687467,84.159,84.129,11.8864417]
[1770775464152,41.58349966,84.168,84.113,11.88867653]
[1770775464153,0.99687467,84.149,84.113,11.88867653]
[1770775464362,0.99687467,84.146,84.123,11.88728071]
[1770775465060,0.99687467,84.146,84.12,0.42354249]
[1770775465249,0.99687467,84.144,84.112,0.42645957]
[1770775465451,0.99687467,84.144,84.113,11.88876868]
[1770775465663,0.99687467,84.144,84.113,12.31522825]
[1770775465964,0.99687467,84.144,84.114,0.42934744]
[1770775466372,74.08,84.143,84.114,0.42934744]
[1770775466551,75.07687467,84.143,84.114,0.42934744]
[1770775466752,0.99687467,84.142,84.114,0.42934744]
[1770775466948,0.99687467,84.142,84.113,11.88876868]
[1770775467150,0.99687467,84.14,84.113,11.88876868]
[1770775467576,0.99687467,84.138,84.11,0.2]
[1770775467883,0.99687467,84.138,84.114,11.88862733]
[1770775468956,0.99687467,84.138,84.111,0.43219978]
[1770775469157,0.99687467,84.136,84.11,0.2]
[1770775469664,0.99687467,84.136,84.113,11.88866165]
[1770775469983,0.99687467,84.136,84.113,12.32919382]
[1770775470474,75.05687467,84.136,84.113,12.32919382]
[1770775471085,12.88253462,84.135,84.113,0.44053217]
[1770775471378,0.99687467,84.135,84.111,11.88905137]
[1770775473566,74.04,84.135,84.112,0.44857538]
[1770775475087,74.04,84.135,84.12,9.29487136]
[1770775475485,74.04,84.135,84.121,11.88763804]
[1770775477868,74.04,84.135,84.112,12.35034434]
[1770775478286,0.99687467,84.134,84.112,11.88891002]
[1770775481482,74.04,84.135,84.113,0.46881158]
[1770775481794,74.04,84.135,84.121,0.46881158]
[1770775482369,74.04,84.135,84.12,3.47767973]
[1770775486097,74.04,84.135,84.121,11.88763804]
[1770775486872,75.03687467,84.135,84.121,11.88763804]
[1770775488392,75.03687467,84.135,84.114,11.88862733]
[1770775489393,75.03687467,84.135,84.114,41.61019567]
[1770775489591,75.03687467,84.135,84.12,3.47767973]
[1770775489900,0.99687467,84.134,84.114,41.61019567]
[1770775490677,74.04,84.135,84.12,3.47767973]
[1770775491196,74.04,84.135,84.115,0.49156471]
[1770775492382,74.04,84.135,84.116,12.38416048]
[1770775493109,1.00842198,84.17,84.131,0.49791994]
[1770775493398,1.00842198,84.17,84.13,3.47767973]
[1770775493399,1.00842198,84.188,84.151,0.49791994]
[1770775494176,1.00842198,84.186,84.152,11.88325886]
[1770775494394,1.00842198,84.186,84.153,0.49997681]
[1770775495077,1.00842198,84.186,84.152,11.88325886]
[1770775496787,1.00842198,84.184,84.152,11.88325886]
[1770775497801,3.47767973,84.19,84.152,11.88325886]
[1770775497802,1.00842198,84.182,84.152,11.88325886]
[1770775498313,1.00842198,84.179,84.146,52.62]
[1770775498600,1.00842198,84.179,84.15,15.36118058]
[1770775499000,1.00842198,84.179,84.15,15.35794295]
[1770775499704,1.00842198,84.179,84.141,52.6]
[1770775499891,1.00842198,84.177,84.143,11.8844971]
[1770775500098,1.00842198,84.177,84.141,53.11182076]
[1770775500305,1.00842198,84.177,84.096,47.56444522]
[1770775500306,1.00842198,84.169,84.128,11.88663098]
[1770775500605,1.00842198,84.159,84.122,11.8874585]
[1770775500780,1.00842198,84.159,84.131,11.8861923]
[1770775500982,1.00842198,84.159,84.12,56.0544421]
[1770775501204,1.00842198,84.159,84.13,3.4744421]
[1770775501582,1.00842198,84.159,84.14,3.4744421]
[1770775502207,1.00842198,84.159,84.142,11.88467115]
[1770775502707,1.00842198,84.159,84.14,3.4744421]
[1770775503701,11.88172353,84.163,84.14,3.4744421]
[1770775503902,12.89014551,84.163,84.14,3.4744421]
[1770775504502,1.00842198,84.162,84.14,3.4744421]